bitfinex/quotes_ETHUSD_20251116
["timestamp","ask_amount","ask_price","bid_price","bid_amount"]
[1763268069386,0.002,3195.9,3195.8,6.1842793]
[1763268070486,0.002,3195.9,3195.8,5.7116793]
[1763268071397,1.1776,3195.9,3195.8,1.62750018]
[1763268071704,0.4896,3195.9,3195.8,5.3061753]
[1763268073794,0.9646,3195.9,3195.8,3.46683774]
[1763268074095,0.9646,3195.9,3195.8,5.15894801]
[1763268074608,0.9646,3195.9,3195.8,3.65682258]
[1763268074769,0.9646,3195.9,3195.8,0.12537475]
[1763268074974,0.9646,3195.9,3195.8,1.96471231]
[1763268079592,1.45561683,3195.9,3195.8,1.96471231]
[1763268082091,0.002,3195.9,3195.8,5.39022459]
[1763268082305,0.4537,3195.9,3195.8,5.58765043]
[1763268085208,0.9287,3195.9,3195.8,1.96471231]
[1763268085378,1.1286,3195.9,3195.8,0.12537475]
[1763268085583,1.61960797,3195.9,3195.8,0.12537475]
[1763268089609,1.61960797,3195.9,3195.5,2.96841228]
[1763268089610,1.91139733,3195.9,3195.5,0.001]
[1763268089789,2.29103756,3195.6,3195.5,0.001]
[1763268089982,2.29103756,3195.6,3195.1,0.001]
[1763268089983,0.2361,3195.3,3195.2,0.93574114]
[1763268090196,1.83933756,3195.2,3194.8,0.001]
[1763268090506,0.4277,3194.9,3194.8,0.001]
[1763268091006,0.9027,3194.9,3194.8,0.001]
[1763268091507,0.475,3195.5,3194.8,3.67967512]
[1763268091710,0.475,3195.5,3195.4,1.83933756]
[1763268092183,0.9267,3195.5,3195.4,1.83933756]
[1763268092380,0.9267,3195.5,3195.4,2.53224553]
[1763268094110,0.9267,3195.5,3195.4,2.53324553]
[1763268094705,0.4517,3195.5,3195.4,4.37258309]
[1763268094881,1.15420797,3195.9,3195.4,5.2815414]
[1763268095212,0.4906,3195.5,3195.4,0.69390797]
[1763268095714,0.9519,3195.5,3195.4,0.69390797]
[1763268097030,0.9519,3195.5,3195.4,0.001]
[1763268102730,0.4906,3195.5,3195.4,1.84033756]
[1763268102932,0.002,3195.9,3195.4,5.76175858]
[1763268103230,0.002,3195.9,3195.7,1.83933756]
[1763268103430,0.4633,3195.9,3195.7,1.83933756]
[1763268103634,0.4906,3195.8,3195.7,1.83933756]
[1763268104324,0.9519,3195.8,3195.7,2.49883756]
[1763268105635,0.4906,3195.8,3195.7,2.49883756]
[1763268106310,0.1982,3195.9,3195.7,2.49883756]
[1763268106518,0.002,3195.9,3195.7,2.49883756]
[1763268106826,0.4906,3195.8,3195.7,2.49883756]
[1763268107021,0.4906,3195.8,3195.7,1.83933756]
[1763268107415,0.4906,3195.8,3195.7,2.32993756]
[1763268111241,0.9539,3195.8,3195.7,2.32993756]
[1763268112371,0.9539,3195.8,3195.7,0.4906]
[1763268113469,0.9539,3195.8,3195.4,0.001]
[1763268113657,0.4906,3195.5,3195.4,0.001]
[1763268113967,0.4906,3195.5,3195.4,0.94164085]
[1763268114182,0.9519,3195.5,3195.4,0.94164085]
[1763268114766,0.9519,3195.5,3195.4,0.001]
[1763268114957,1.23102376,3195.5,3195.4,0.001]
[1763268115159,1.5223492,3195.5,3195.4,0.001]
[1763268116273,1.24322544,3195.5,3195.4,0.001]
[1763268116677,3.082563,3195.5,3195.4,0.001]
[1763268116861,1.24322544,3195.5,3195.4,0.001]
[1763268117064,4.2163038,3195.5,3195.4,0.001]
[1763268118181,4.2163038,3195.5,3195.0,0.001]
[1763268118182,1.1337408,3195.4,3195.0,0.001]
[1763268118355,5.01581592,3195.1,3195.0,0.001]
[1763268118671,3.4678038,3195.1,3195.0,0.001]
[1763268118885,3.9291038,3195.1,3195.0,0.001]
[1763268119392,2.08976624,3195.1,3195.0,0.001]
[1763268119595,2.48267662,3195.1,3195.0,0.001]
[1763268120597,4.32201418,3195.1,3195.0,0.001]
[1763268121009,2.48267662,3195.1,3195.0,0.001]
[1763268121301,0.95602544,3195.1,3195.0,0.001]
[1763268123711,0.29132544,3195.1,3195.0,0.4727]
[1763268123858,0.9519,3195.1,3195.0,0.001]
[1763268124062,0.4906,3195.1,3195.0,0.001]
[1763268124470,0.9859,3195.1,3195.0,0.001]
[1763268124862,1.26842376,3195.1,3195.0,0.001]
[1763268125698,3.39868809,3195.1,3195.0,0.001]
[1763268125902,3.11616433,3195.1,3195.0,0.001]
[1763268127116,3.60733495,3195.1,3195.0,0.001]
[1763268127296,1.76799739,3195.1,3195.0,0.001]
[1763268128999,0.49117062,3195.1,3195.0,0.001]
[1763268129307,0.95137062,3195.1,3195.0,0.001]
[1763268129817,1.44667062,3195.1,3195.0,0.001]
[1763268130027,0.95137062,3195.1,3195.0,0.001]
[1763268131887,0.002,3195.4,3195.0,0.4512]
[1763268132294,0.4602,3195.1,3195.0,0.001]
[1763268132725,0.9555,3195.1,3195.0,0.001]
[1763268135891,2.37071988,3195.1,3195.0,0.001]
[1763268136092,1.6397598,3195.1,3195.0,0.001]
[1763268136290,1.23697908,3195.1,3195.0,0.001]
[1763268138131,2.37071988,3195.1,3195.0,0.001]
[1763268147752,2.37166933,3195.1,3195.0,0.001]
[1763268149039,1.72912441,3195.1,3195.0,0.001]
[1763268149229,1.90203685,3195.1,3195.0,0.001]
[1763268151267,0.78302441,3195.1,3195.0,0.4936]
[1763268152474,0.78302441,3195.1,3195.0,0.001]
[1763268152654,0.78302441,3195.1,3195.0,0.4936]
[1763268154741,0.78302441,3195.1,3195.0,0.9932]
[1763268155573,0.29182853,3195.1,3195.0,0.9932]
[1763268155867,0.002,3195.4,3195.0,0.4936]
[1763268155868,0.29182853,3195.3,3195.0,0.4936]
[1763268156083,0.29182853,3195.2,3195.0,0.4936]
[1763268156241,0.29182853,3195.1,3195.0,0.4936]
[1763268156568,0.29182853,3195.3,3195.0,0.5006]
[1763268156767,0.002,3195.4,3195.2,0.4976]
[1763268156932,0.29183349,3195.3,3195.2,0.4976]
[1763268157130,0.76113349,3195.3,3195.0,0.001]
[1763268157336,0.2355,3195.1,3195.0,0.001]
[1763268157578,0.79079557,3195.1,3195.0,0.001]
[1763268157770,0.52733349,3195.1,3195.0,0.001]
[1763268158081,0.29183349,3195.1,3195.0,0.4986]
[1763268158876,0.76113349,3195.1,3195.0,0.001]
[1763268159181,1.21133349,3195.1,3195.0,0.001]
[1763268161875,0.29183349,3195.1,3195.0,0.001]
[1763268162559,0.76113349,3195.1,3195.0,0.001]
[1763268166494,0.29183349,3195.1,3195.0,0.9982]
[1763268166892,0.29183349,3195.1,3195.0,0.4986]
[1763268167401,0.76113349,3195.1,3195.0,0.001]
[1763268167805,0.29183349,3195.1,3195.0,0.4986]
[1763268169406,0.29183349,3195.1,3195.0,0.001]
[1763268169704,0.76113349,3195.1,3195.0,0.001]
[1763268170701,0.29183349,3195.1,3195.0,0.4986]
[1763268171522,0.29183349,3195.1,3195.0,2.65528732]
[1763268171724,0.29183349,3195.1,3195.0,2.92091605]
[1763268171923,0.49110992,3195.1,3195.0,2.92091605]
[1763268178731,0.002,3195.4,3195.0,2.92091605]
[1763268178926,0.002,3195.4,3195.3,0.6332]
[1763268179423,0.002,3195.4,3195.3,1.1328]
[1763268179629,0.002,3195.4,3195.3,1.41178873]
[1763268181694,0.002,3195.4,3195.3,0.91218873]
[1763268182097,0.002,3195.4,3195.3,0.6332]
[1763268182697,0.002,3195.4,3195.3,1.1328]
[1763268187248,0.002,3195.4,3195.3,0.4976]
[1763268187453,0.002,3195.4,3195.0,1.40036953]
[1763268187454,0.002,3195.4,3195.0,0.26662873]
[1763268187621,0.002,3195.4,3195.0,0.73682873]
[1763268187950,0.002,3195.4,3195.1,0.48836569]
[1763268189951,0.002,3195.4,3195.3,0.4991]
[1763268190753,0.002,3195.4,3195.3,0.9659]
[1763268193554,0.9659,3195.4,3195.1,0.35276569]
[1763268193749,0.9659,3195.4,3195.0,2.10730959]
[1763268193952,0.9659,3195.4,3195.1,0.4668]
[1763268193953,0.4645,3195.3,3195.1,0.4668]
[1763268194155,0.4645,3195.3,3195.0,0.001]
[1763268194156,0.4507,3195.1,3195.0,0.001]
[1763268194455,0.002,3195.4,3195.0,0.4678]
[1763268194640,0.002,3195.4,3195.0,1.4135]
[1763268194848,0.002,3195.4,3195.0,0.9325]
[1763268195038,0.002,3195.4,3195.0,0.4657]
[1763268196120,0.4665,3195.4,3195.0,0.4657]
[1763268197534,0.4507,3195.1,3195.0,0.001]
[1763268198542,0.9152,3195.1,3195.0,0.001]
[1763268199622,0.4507,3195.1,3195.0,0.001]
[1763268200228,0.4645,3195.3,3195.0,0.001]
[1763268200864,0.4507,3195.1,3195.0,0.001]
[1763268201267,0.4507,3195.1,3194.8,0.1782772]
[1763268201553,0.9152,3195.1,3194.7,0.001]
[1763268202262,0.002,3195.4,3194.7,1.84168086]
[1763268202467,0.29169358,3195.3,3194.8,0.481]
[1763268202630,0.29169358,3195.2,3194.7,1.84168086]
[1763268202831,0.75619358,3195.3,3194.7,1.84168086]
[1763268203032,0.29169358,3195.2,3194.7,1.84168086]
[1763268203447,0.29169358,3195.2,3194.9,1.84068086]
[1763268203654,0.29169358,3195.3,3194.9,1.84068086]
[1763268205073,0.29169358,3195.3,3195.2,0.4647]
[1763268205726,0.29169358,3195.3,3195.1,1.84068086]
[1763268207263,0.002,3195.4,3195.1,1.84068086]
[1763268207462,0.29369358,3195.4,3194.9,2.30718086]
[1763268207670,0.002,3195.4,3194.9,2.78818086]
[1763268207965,0.29169358,3195.3,3194.9,2.78818086]
[1763268208170,0.4665,3195.4,3194.9,2.30718086]
[1763268208371,0.75619358,3195.3,3194.9,2.30718086]
[1763268208549,0.002,3195.4,3194.9,2.30718086]
[1763268208550,0.4665,3195.4,3194.9,2.30718086]
[1763268208756,0.29166642,3195.3,3194.9,2.78818086]
[1763268209151,0.29166642,3195.3,3195.2,0.4647]
[1763268209352,0.002,3195.4,3195.2,0.4647]
[1763268209553,0.29166642,3195.3,3195.2,0.4647]
[1763268210287,0.29166642,3195.3,3195.0,0.481]
[1763268210584,0.29166642,3195.3,3194.9,1.84068086]
[1763268210883,0.29166642,3195.3,3194.9,2.32168086]
[1763268211348,0.29166642,3195.3,3195.2,0.4647]
[1763268212871,1.20686642,3195.3,3194.7,0.001]
[1763268213084,0.54601478,3195.2,3194.8,1.84068086]
[1763268213458,1.01051478,3195.2,3194.8,1.84068086]
[1763268213788,0.7188,3195.2,3194.8,1.84068086]
[1763268215391,0.002,3195.3,3195.1,0.4647]
[1763268215552,0.002,3195.3,3195.2,2.29858086]
[1763268216186,0.002,3195.3,3195.2,2.75488086]
[1763268217491,0.4930656,3195.3,3195.2,2.75488086]
[1763268217662,0.4930656,3195.3,3195.2,3.3272445]
[1763268218064,0.002,3195.3,3195.2,6.32729702]
[1763268218304,0.002,3195.3,3195.2,7.20023576]
[1763268218801,0.002,3195.3,3195.2,8.39928043]
[1763268220699,0.002,3195.3,3195.2,6.70717016]
[1763268221302,0.002,3195.3,3195.2,6.83256141]
[1763268223206,0.002,3195.3,3195.2,8.51966959]
[1763268223407,0.002,3195.3,3195.2,6.83256141]
[1763268225113,0.002,3195.3,3195.2,8.5187348]
[1763268227851,0.002,3195.3,3195.2,6.83256141]
[1763268230342,0.002,3195.3,3195.2,10.66256141]
[1763268233736,0.002,3195.3,3195.2,7.96007655]
[1763268236162,0.002,3195.3,3195.2,5.97075741]
[1763268236532,0.002,3195.3,3195.2,4.58637655]
[1763268237558,0.002,3195.3,3195.2,4.13007655]
[1763268241163,0.002,3195.3,3195.2,7.6569308]
[1763268241543,0.002,3195.3,3195.2,5.81624994]
[1763268241872,0.002,3195.3,3195.2,6.27254994]
[1763268242071,0.002,3195.3,3195.2,5.81624994]
[1763268242276,0.002,3195.3,3195.2,6.27254994]
[1763268243179,0.002,3195.3,3195.2,4.58637655]
[1763268243353,0.002,3195.3,3195.2,6.27509122]
[1763268244175,0.002,3195.3,3195.2,4.58637655]
[1763268244564,0.002,3195.3,3195.2,6.42705741]
[1763268244864,0.002,3195.3,3195.2,6.86236141]
[1763268246376,0.002,3195.3,3195.2,6.37626141]
[1763268246881,0.002,3195.3,3195.2,6.86236141]
[1763268247984,0.002,3195.3,3195.2,10.69236141]
[1763268250576,0.002,3195.3,3195.2,9.74836141]
[1763268250789,0.002,3195.3,3195.2,10.19916141]
[1763268252903,0.002,3195.3,3195.2,8.17375223]
[1763268253889,0.4743,3195.3,3195.2,7.31744823]
[1763268254207,0.9732,3195.3,3195.2,1.81792302]
[1763268254379,0.9732,3195.3,3195.2,1.12843495]
[1763268254560,0.9732,3195.3,3195.1,1.12843495]
[1763268254762,0.9604,3195.2,3195.1,1.12843495]
[1763268255146,0.9604,3195.2,3195.0,1.12843495]
[1763268255344,0.002,3195.3,3195.0,1.12843495]
[1763268255345,0.4989,3195.1,3195.0,1.12843495]
[1763268255551,1.1501,3195.1,3195.0,1.12843495]
[1763268258269,1.1501,3195.1,3194.9,1.12843495]
[1763268258473,0.4989,3195.0,3194.9,1.12843495]
[1763268258709,0.9604,3195.0,3194.9,1.12843495]
[1763268260207,0.4615,3195.0,3194.9,1.12843495]
[1763268260376,0.002,3195.3,3194.9,1.02096073]
[1763268260577,0.002,3195.3,3195.2,1.65595254]
[1763268260778,0.002,3195.3,3195.2,2.54045654]
[1763268261017,0.002,3195.3,3195.2,2.78969334]
[1763268261324,0.002,3195.3,3195.2,2.91509875]
[1763268261911,0.4635,3195.3,3195.2,2.91509875]
[1763268263017,0.002,3195.3,3195.2,2.91509875]
[1763268263781,0.002,3195.3,3195.2,3.84539875]
[1763268263984,0.002,3195.3,3195.2,6.12302051]
[1763268264209,0.002,3195.3,3195.2,6.09172357]
[1763268264521,0.002,3195.3,3195.2,3.84539875]
[1763268265107,0.002,3195.3,3195.2,5.53793052]
[1763268266196,0.002,3195.3,3195.2,3.84539875]
[1763268266598,0.002,3195.3,3195.2,3.39409875]
[1763268267184,0.002,3195.3,3195.2,5.08663052]
[1763268271431,0.4635,3195.3,3195.2,4.60763052]
[1763268271595,0.9624,3195.3,3195.2,4.60763052]
[1763268271934,0.9624,3195.3,3195.2,2.90791016]
[1763268272099,0.9624,3195.3,3195.2,1.78135795]
[1763268273126,0.9624,3195.3,3195.2,0.12540541]
[1763268276124,0.9624,3195.3,3195.2,1.78135795]
[1763268277837,0.9624,3195.3,3195.2,0.12540541]
[1763268282264,0.9624,3195.3,3195.2,1.25195762]
[1763268282461,0.002,3195.3,3195.2,1.25195762]
[1763268282653,0.002,3195.3,3195.2,1.74665762]
[1763268282837,0.002,3195.3,3195.2,1.25195762]
[1763268283044,0.4535,3195.3,3195.2,1.25195762]
[1763268283243,0.4535,3195.3,3195.2,0.12540541]
[1763268283639,0.4535,3195.3,3195.2,1.2525957]
[1763268283854,0.4535,3195.3,3195.2,0.12540541]
[1763268289584,0.002,3195.3,3195.2,0.12540541]
[1763268290480,0.002,3195.3,3195.2,1.08086846]
[1763268290682,0.002,3195.3,3195.2,3.26799717]
[1763268291083,0.002,3195.3,3195.2,3.23670023]
[1763268291266,0.002,3195.3,3195.2,2.27870023]
[1763268291464,0.002,3195.3,3195.2,1.81793718]
[1763268291855,0.4535,3195.3,3195.2,1.81793718]
[1763268292264,0.9041,3195.3,3195.2,1.81793718]
[1763268292764,0.4535,3195.3,3195.2,1.81793718]
[1763268292967,0.002,3195.3,3195.2,1.81793718]
[1763268293559,0.002,3195.3,3195.2,2.31263718]
[1763268294291,0.002,3195.3,3195.2,2.82287023]
[1763268294786,0.002,3195.3,3195.2,2.31263718]
[1763268295794,0.002,3195.3,3195.2,1.81793718]
[1763268295962,0.4535,3195.3,3195.2,1.81793718]
[1763268296301,0.9041,3195.3,3195.2,1.81793718]
[1763268299801,0.4535,3195.3,3195.2,1.81793718]
[1763268300369,0.9041,3195.3,3195.2,1.81793718]
[1763268302369,0.9041,3195.3,3195.2,0.12540541]
[1763268302578,0.9041,3195.3,3195.2,1.1282786]
[1763268302771,0.9041,3195.3,3195.1,1.1282786]
[1763268302970,0.4506,3195.2,3195.1,1.1282786]
[1763268303177,0.9021,3195.2,3195.1,1.1282786]
[1763268306179,1.39320743,3195.2,3194.8,1.1292786]
[1763268306404,0.6273,3194.9,3194.8,0.001]
[1763268306713,1.093,3194.9,3194.8,0.001]
[1763268312092,0.6273,3194.9,3194.8,0.001]
[1763268312499,0.4715,3194.9,3194.8,0.001]
[1763268312696,0.49110743,3195.2,3194.8,1.16719611]
[1763268313004,0.002,3195.3,3195.1,2.32542944]
[1763268313203,0.002,3195.3,3195.2,0.4802]
[1763268314520,0.4854,3195.3,3195.1,1.1337408]
[1763268314687,0.4606,3195.3,3195.2,1.84032944]
[1763268315012,0.4854,3195.3,3195.1,1.84032944]
[1763268315216,0.4606,3195.3,3195.2,0.29740702]
[1763268315885,0.944,3195.3,3195.2,0.29740702]
[1763268316518,1.43506745,3195.3,3195.1,1.84032944]
[1763268316815,0.6908,3195.2,3195.1,1.84032944]
[1763268318153,0.2322,3195.2,3195.1,1.84032944]
[1763268318304,0.6908,3195.2,3195.1,1.84032944]
[1763268321248,0.2322,3195.2,3195.1,1.84032944]
[1763268322111,0.6908,3195.2,3195.1,1.84032944]
[1763268323550,0.6908,3195.2,3194.9,1.84032944]
[1763268323756,0.2322,3195.2,3194.9,1.84032944]
[1763268323911,0.4809,3195.0,3194.9,1.84032944]
[1763268324426,0.9395,3195.0,3194.9,1.84032944]
[1763268325352,0.9395,3195.0,3194.8,0.001]
[1763268325548,0.2347,3194.9,3194.8,0.001]
[1763268326055,0.6933,3194.9,3194.8,0.001]
[1763268326744,1.18440124,3194.9,3194.8,0.001]
[1763268328621,0.49110124,3194.9,3194.8,0.4812]
[1763268328820,0.002,3195.3,3194.8,4.2992519]
[1763268329050,0.002,3195.3,3195.2,2.32052944]
[1763268329627,0.002,3195.3,3195.2,2.78802944]
[1763268330449,0.002,3195.3,3195.2,2.32052944]
[1763268331056,0.4854,3195.3,3195.1,0.03129792]
[1763268331261,0.002,3195.3,3195.2,1.84032944]
[1763268331726,0.49306941,3195.3,3195.2,1.84032944]
[1763268332457,0.49306941,3195.3,3195.2,2.32052944]
[1763268332659,0.49306941,3195.3,3195.2,2.89932298]
[1763268332826,0.49306941,3195.3,3195.2,3.36682298]
[1763268333027,0.002,3195.3,3195.2,3.36682298]
[1763268333644,0.002,3195.3,3195.2,3.49223271]
[1763268334528,0.5004,3195.3,3195.2,2.54453271]
[1763268334763,0.9583,3195.3,3194.9,1.1282786]
[1763268334956,0.4599,3195.3,3194.9,1.1282786]
[1763268335167,0.4984,3195.0,3194.9,1.6286786]
[1763268335465,0.4599,3195.3,3195.0,1.84032944]
[1763268336906,0.4599,3195.3,3195.2,1.84032944]
[1763268337168,0.002,3195.3,3195.2,2.31532944]
[1763268339387,0.5004,3195.3,3195.2,1.84032944]
[1763268340078,0.002,3195.3,3195.2,1.84032944]
[1763268340374,0.5004,3195.3,3195.2,1.84032944]
[1763268340804,0.002,3195.3,3195.2,6.11053714]
[1763268341008,0.002,3195.3,3195.2,3.12513216]
[1763268341599,0.002,3195.3,3195.2,4.25341076]
[1763268343926,0.49305344,3195.3,3195.2,4.25341076]
[1763268354839,0.49305344,3195.3,3195.2,3.12513216]
[1763268355139,0.49305344,3195.3,3195.2,3.77841076]
[1763268357647,0.99145344,3195.3,3195.2,3.46900804]
[1763268358348,0.99145344,3195.3,3195.2,2.34072944]
[1763268359953,0.49305344,3195.3,3195.2,2.81572944]
[1763268365458,1.43515344,3195.3,3195.2,1.62925073]
[1763268365655,0.9441,3195.3,3195.2,1.12885073]
[1763268366156,0.4653,3195.3,3195.2,1.12885073]
[1763268366356,0.9441,3195.3,3195.2,1.12885073]
[1763268369166,1.43518715,3195.3,3195.2,1.12885073]
[1763268369539,1.43518715,3195.3,3195.1,2.96918017]
[1763268369761,0.7112,3195.2,3195.1,2.96918017]
[1763268369958,0.7112,3195.2,3195.1,1.84032944]
[1763268372561,0.2324,3195.2,3195.1,1.84032944]
[1763268372954,0.7112,3195.2,3195.1,1.84032944]
[1763268375062,0.7112,3195.2,3195.0,0.7112]
[1763268375226,0.4563,3195.1,3195.0,0.7112]
[1763268375825,0.49308715,3195.3,3195.1,0.452]
[1763268376024,0.49308715,3195.3,3195.2,1.12863784]
[1763268377068,0.94938715,3195.3,3195.2,1.12863784]
[1763268377287,1.44568715,3195.3,3195.2,1.12863784]
[1763268378286,1.44568715,3195.3,3195.1,2.78530221]
[1763268378578,0.7183,3195.2,3195.1,2.78530221]
[1763268382887,0.7183,3195.2,3195.1,1.12863784]
[1763268387099,0.49308715,3195.3,3195.1,2.10866437]
[1763268387301,0.49308715,3195.3,3195.2,2.36172847]
[1763268387597,0.002,3195.3,3195.2,2.85802847]
[1763268388250,0.002,3195.3,3195.2,1.72938644]
[1763268395567,0.002,3195.3,3195.2,4.98115995]
[1763268395904,0.002,3195.3,3195.2,3.25733124]
[1763268396205,0.002,3195.3,3195.2,2.85182724]
[1763268397086,0.002,3195.3,3195.2,1.23028644]
[1763268397287,0.4841,3195.3,3195.2,0.77828644]
[1763268397491,0.9719,3195.3,3195.2,0.4963]
[1763268397802,0.9719,3195.3,3195.2,1.12747731]
[1763268397978,0.9719,3195.3,3195.1,0.4878]
[1763268398180,0.6836,3195.2,3195.1,0.4878]
[1763268399005,0.6836,3195.2,3195.0,2.78414168]
[1763268399207,0.967,3195.1,3195.0,2.78414168]
[1763268400511,0.967,3195.1,3195.0,1.12747731]
[1763268400804,0.967,3195.1,3194.9,1.12747731]
[1763268401001,0.6865,3195.0,3194.9,1.12747731]
[1763268402610,0.6865,3195.0,3194.8,0.001]
[1763268402812,1.164,3194.9,3194.8,0.001]
[1763268404114,0.4898,3195.3,3194.8,2.12926437]
[1763268404310,0.4898,3195.3,3195.0,1.65666437]
[1763268404501,0.002,3195.3,3195.2,1.65666437]
[1763268404702,0.002,3195.3,3195.2,2.12826437]
[1763268405411,0.002,3195.3,3195.2,2.45383854]
[1763268406413,0.002,3195.3,3195.2,2.12826437]
[1763268408300,0.002,3195.3,3195.2,2.61606437]
[1763268408505,0.002,3195.3,3195.2,2.64736131]
[1763268408707,0.002,3195.3,3195.2,3.87521136]
[1763268408907,0.002,3195.3,3195.2,5.56628697]
[1763268409224,0.002,3195.3,3195.2,6.12291567]
[1763268409610,0.002,3195.3,3195.2,4.43184006]
[1763268413107,0.002,3195.3,3195.2,3.94404006]
[1763268416130,0.002,3195.3,3195.2,5.63317693]
[1763268417323,0.002,3195.3,3195.2,3.50491256]
[1763268417526,0.002,3195.3,3195.2,5.16157693]
[1763268417900,0.002,3195.3,3195.2,5.63317693]
[1763268420946,0.002,3195.3,3195.2,6.12097693]
[1763268421248,0.002,3195.3,3195.2,4.43184006]
[1763268421754,0.002,3195.3,3195.2,3.94404006]
[1763268422538,0.002,3195.3,3195.2,4.43184006]
[1763268426523,0.002,3195.3,3195.2,3.94404006]
[1763268426939,0.002,3195.3,3195.2,4.43974006]
[1763268427665,0.002,3195.3,3195.2,2.78307569]
[1763268427871,0.002,3195.3,3195.2,4.3199123]
[1763268428231,0.002,3195.3,3195.2,4.28861536]
[1763268430225,0.002,3195.3,3195.2,4.3199123]
[1763268430668,0.002,3195.3,3195.2,7.44960684]
[1763268430850,0.002,3195.3,3195.2,7.4183099]
[1763268431053,0.002,3195.3,3195.2,8.69639368]
[1763268431269,0.002,3195.3,3195.2,10.92903495]
[1763268431767,0.002,3195.3,3195.2,5.56669914]
[1763268432166,0.002,3195.3,3195.2,8.69639368]
[1763268433969,0.002,3195.3,3195.2,5.56669914]
[1763268434146,0.002,3195.3,3195.2,8.69639368]
[1763268434468,0.002,3195.3,3195.2,5.56669914]
[1763268434666,0.002,3195.3,3195.2,8.69639368]
[1763268434866,0.002,3195.3,3195.2,10.71854887]
[1763268436348,0.002,3195.3,3195.2,7.58885433]
[1763268436655,0.002,3195.3,3195.2,10.71854887]
[1763268438864,0.002,3195.6,3195.3,1.5392448]
[1763268439175,0.002,3195.6,3195.5,5.66946436]
[1763268439483,0.002,3195.6,3195.5,9.49946436]
[1763268439783,0.002,3195.6,3195.5,6.16866436]
[1763268439967,0.002,3195.6,3195.5,6.29403321]
[1763268440139,0.4783,3197.4,3196.2,0.405504]
[1763268440339,0.669,3197.2,3196.2,8.42065152]
[1763268440672,0.678,3196.9,3196.5,6.90581385]
[1763268440967,0.4803,3196.6,3196.5,6.50030985]
[1763268441173,0.9529,3196.6,3196.5,6.50030985]
[1763268441477,0.9529,3196.6,3196.5,5.49056036]
[1763268441969,0.9529,3196.6,3196.5,6.61530925]
[1763268443771,0.9529,3196.6,3196.5,1.80274889]
[1763268443975,0.9529,3196.6,3196.5,0.678]
[1763268446679,0.9529,3196.6,3196.5,2.51740978]
[1763268446976,0.4746,3196.6,3196.5,2.51740978]
[1763268447676,0.9529,3196.6,3196.5,2.51740978]
[1763268447882,0.9529,3196.6,3196.5,0.678]
[1763268448746,0.9529,3196.6,3196.5,2.51740978]
[1763268449610,0.9529,3196.6,3196.5,0.678]
[1763268449949,0.9529,3196.6,3196.3,0.001]
[1763268450146,0.2111,3196.4,3196.3,0.001]
[1763268450579,0.6894,3196.4,3196.3,0.001]
[1763268458190,0.6894,3196.4,3195.9,0.001]
[1763268458191,1.23365532,3196.4,3195.9,0.001]
[1763268458396,1.23365532,3196.4,3195.6,0.001]
[1763268458397,0.4581,3196.0,3195.6,0.001]
[1763268458594,0.6543,3195.7,3195.6,0.001]
[1763268458890,2.78478943,3195.7,3194.8,0.001]
[1763268459198,0.6575,3194.9,3194.8,0.001]
[1763268459563,1.1334,3194.9,3194.8,0.001]
[1763268464273,4.85472532,3194.9,3194.8,0.001]
[1763268464489,4.98020705,3194.9,3194.8,0.001]
[1763268465090,4.98020705,3194.9,3194.7,0.001]
[1763268465295,2.61050706,3194.8,3194.4,0.001]
[1763268465475,2.61050706,3194.8,3194.3,0.001]
[1763268465476,0.2159,3194.5,3194.3,0.001]
[1763268465675,0.4532,3194.4,3194.3,0.001]
[1763268466205,0.9291,3194.4,3194.3,0.001]
[1763268470508,0.4532,3194.4,3194.3,0.001]
[1763268471031,0.9291,3194.4,3194.3,0.001]
[1763268480953,0.4532,3194.4,3194.3,0.001]
[1763268481660,0.9291,3194.4,3194.3,0.001]
[1763268482953,1.42036524,3194.4,3194.3,0.001]
[1763268483151,0.49126524,3194.4,3194.3,0.4739]
[1763268483369,0.4581,3194.4,3194.3,0.001]
[1763268483576,0.4601,3194.4,3194.3,0.001]
[1763268485261,0.002,3194.4,3194.3,0.001]
[1763268485459,0.002,3194.4,3194.3,2.81212854]
[1763268485658,0.002,3194.4,3194.3,3.11166139]
[1763268486467,0.4589,3194.4,3194.3,0.001]
[1763268487777,0.002,3194.4,3194.3,0.4982]
[1763268488136,0.002,3194.4,3194.3,0.001]
[1763268488343,0.9546,3194.4,3194.3,0.001]
[1763268489175,1.245723,3194.4,3194.3,0.001]
[1763268491656,0.293123,3194.4,3194.3,2.34012854]
[1763268491889,0.293123,3194.4,3194.3,4.90638993]
[1763268492093,0.002,3194.4,3194.3,7.16487962]
[1763268492243,0.002,3194.4,3194.3,6.04013073]
[1763268492656,0.002,3194.4,3194.3,6.44563473]
[1763268493148,0.002,3194.4,3194.3,11.82819822]
[1763268493347,0.002,3194.8,3194.3,11.82819822]
[1763268493348,0.002,3194.8,3194.5,0.405504]
[1763268493549,0.002,3194.8,3194.7,7.3764476]
[1763268493749,0.002,3194.8,3194.7,6.27216382]
[1763268493948,0.473,3194.8,3194.5,1.59020904]
[1763268494149,0.2486,3194.6,3194.4,1.12570904]
[1763268494349,0.4688,3194.5,3194.3,0.001]
[1763268494548,0.002,3194.8,3194.4,1.84192854]
[1763268494769,0.471,3194.5,3194.3,0.001]
[1763268494960,0.2486,3194.4,3194.3,0.001]
[1763268495474,0.73979484,3194.4,3194.3,0.001]
[1763268495677,0.49119484,3194.4,3194.3,0.4658]
[1763268496782,0.49119484,3194.4,3194.3,0.001]
[1763268496977,0.96219484,3194.4,3194.3,0.001]
[1763268497179,0.49119484,3194.4,3194.3,0.001]
[1763268497483,0.49119484,3194.4,3194.3,0.4658]
[1763268499662,0.002,3195.1,3194.7,0.118]